bitfinex-derivatives/quotes_SOLF0:USTF0_20250109
["timestamp","ask_amount","ask_price","bid_price","bid_amount"]
[1736408769802,16.93441189,190.8,190.64,5.2922]
[1736408770104,2.6219,190.77,190.68,2.623]
[1736408770797,16.93441189,190.83,190.66,16.93441189]
[1736408771005,0.92437031,190.82,190.66,16.93441189]
[1736408771203,16.93441189,190.83,190.66,16.93441189]
[1736408771408,16.93441189,190.83,190.69,16.93441189]
[1736408771604,2.6215,190.8,190.71,2.6226]
[1736408771804,16.93441189,190.86,190.69,16.93441189]
[1736408772009,0.92424438,190.85,190.69,16.93441189]
[1736408772902,16.93441189,190.83,190.69,16.93441189]
[1736408773203,2.6219,190.77,190.66,16.93441189]
[1736408773403,16.93441189,190.8,190.64,5.2922]
[1736408774001,16.93441189,190.8,190.66,16.93441189]
[1736408774206,2.6218,190.78,190.66,16.93441189]
[1736408774707,2.6216,190.79,190.7,2.6228]
[1736408775204,2.6213,190.82,190.69,16.93441189]
[1736408775605,16.93441189,190.86,190.69,16.93441189]
[1736408775807,16.93441189,190.83,190.69,16.93441189]
[1736408776108,0.92351156,190.82,190.66,16.93441189]
[1736408776308,2.6217,190.78,190.7,2.6228]
[1736408777808,2.6216,190.79,190.7,2.6228]
[1736408778000,16.93441189,190.83,190.69,2.6229]
[1736408778200,0.925,190.88,190.66,16.93441189]
[1736408778201,16.93441189,190.8,190.66,16.93441189]
[1736408778404,2.6221,190.76,190.66,16.93441189]
[1736408778704,2.6221,190.76,190.67,2.6232]
[1736408779704,2.6221,190.76,190.68,2.6231]
[1736408780305,2.6221,190.76,190.66,16.93441189]
[1736408780306,2.6218,190.77,190.69,2.6229]
[1736408781909,2.6218,190.77,190.66,16.93441189]
[1736408781910,16.93441189,190.79,190.64,5.2922]
[1736408782106,16.93441189,190.76,190.64,5.2922]
[1736408782306,2.6226,190.72,190.64,5.2922]
[1736408782510,1.055,190.78,190.64,5.2922]
[1736408782909,1.055,190.78,190.64,3.5874]
[1736408783109,16.93441189,190.73,190.64,3.5874]
[1736408783707,16.93441189,190.7,190.59,30.77512765]
[1736408783911,16.93441189,190.7,190.59,29.03822765]
[1736408784113,0.2408,190.77,190.59,29.03822765]
[1736408784114,2.6237,190.64,190.59,29.03822765]
[1736408784313,16.93441189,190.67,190.59,29.03822765]
[1736408784512,0.92180747,190.69,190.59,29.03822765]
[1736408784513,16.93441189,190.7,190.59,29.03822765]
[1736408784806,2.6232,190.68,190.59,2.6243]
[1736408785108,16.93441189,190.7,190.55,1.4925]
[1736408785412,0.92150562,190.69,190.55,1.4925]
[1736408785611,16.93441189,190.67,190.55,1.4925]
[1736408786112,2.6235,190.65,190.56,2.6247]
[1736408786512,16.93441189,190.67,190.56,2.6247]
[1736408786815,2.6238,190.63,190.55,1.4925]
[1736408787914,2.6239,190.62,190.55,1.4925]
[1736408788116,16.93441189,190.67,190.55,1.4925]
[1736408788914,2.6238,190.63,190.55,1.4925]
[1736408789413,16.93441189,190.71,190.58,2.6244]
[1736408789613,0.92119871,190.7,190.58,2.6244]
[1736408790015,2.6232,190.68,190.59,2.6242]
[1736408790216,16.93441189,190.76,190.59,16.93441189]
[1736408790415,0.92130356,190.75,190.59,16.93441189]
[1736408790615,2.6228,190.7,190.59,16.93441189]
[1736408791316,16.93441189,190.73,190.58,7.24279178]
[1736408791613,0.2408,190.77,190.6,4.84057579]
[1736408791614,16.93441189,190.7,190.6,4.84057579]
[1736408791813,16.93441189,190.67,190.6,4.84057579]
[1736408792015,2.6235,190.65,190.6,4.84057579]
[1736408792315,16.93441189,190.67,190.6,4.84057579]
[1736408792617,2.6237,190.64,190.55,4.1173]
[1736408793023,2.6235,190.66,190.55,1.4925]
[1736408793216,16.93441189,190.67,190.55,1.4925]
[1736408793923,19.55771189,190.67,190.57,2.6246]
[1736408794118,16.93441189,190.67,190.55,1.4925]
[1736408794318,16.93441189,190.7,190.55,1.4925]
[1736408795118,2.6232,190.67,190.58,2.6244]
[1736408796117,2.6229,190.7,190.59,16.93441189]
[1736408796325,16.93441189,190.76,190.59,16.93441189]
[1736408796520,0.92185586,190.75,190.59,16.93441189]
[1736408796820,2.6227,190.71,190.59,16.93441189]
[1736408797213,16.93441189,190.76,190.62,2.6239]
[1736408797415,2.6229,190.7,190.59,16.93441189]
[1736408797614,16.93441189,190.73,190.57,29.03822765]
[1736408797822,0.92189413,190.72,190.57,29.03822765]
[1736408798027,0.92189413,190.72,190.57,7.24279178]
[1736408798324,2.6231,190.68,190.59,2.6242]
[1736408799322,2.6234,190.66,190.58,2.6244]
[1736408799615,2.6234,190.66,190.56,24.17720367]
[1736408800929,2.6235,190.65,190.56,24.17720367]
[1736408801225,2.6235,190.65,190.58,2.6243]
[1736408801920,2.6235,190.65,190.56,16.93441189]
[1736408802726,2.6235,190.65,190.59,2.6243]
[1736408802925,16.93441189,190.7,190.59,2.6243]
[1736408803221,16.93441189,190.73,190.56,16.93441189]
[1736408803523,0.9217392,190.72,190.61,2.624]
[1736408803825,2.6231,190.69,190.61,2.624]
[1736408805923,16.93441189,190.73,190.56,45.97263954]
[1736408805924,16.93441189,190.67,190.56,29.03822765]
[1736408806230,16.93441189,190.67,190.55,30.53072765]
[1736408806928,2.6237,190.64,190.56,2.6246]
[1736408807530,2.6237,190.64,190.55,1.4925]
[1736408807724,2.6237,190.64,190.57,2.6246]
[1736408808524,2.6237,190.64,190.55,1.4925]
[1736408808729,2.624,190.61,190.55,1.4925]
[1736408808928,16.93441189,190.64,190.55,1.4925]
[1736408809229,0.92128524,190.63,190.53,1.8146]
[1736408809420,16.93441189,190.64,190.53,1.8146]
[1736408810029,19.55811189,190.64,190.56,2.6246]
[1736408810228,16.93441189,190.64,190.53,1.8146]
[1736408810529,2.6237,190.64,190.56,2.6247]
[1736408810933,16.93441189,190.67,190.53,1.8146]
[1736408811231,1.0553,190.69,190.56,16.93441189]
[1736408811427,16.93441189,190.73,190.56,16.93441189]
[1736408811631,0.92138495,190.72,190.56,16.93441189]
[1736408812531,16.93441189,190.67,190.55,7.24279178]
[1736408812730,0.92123427,190.66,190.55,7.24279178]
[1736408812930,2.6241,190.61,190.55,7.24279178]
[1736408813126,16.93441189,190.61,190.55,7.24279178]
[1736408813332,16.93441189,190.61,190.51,7.24279178]
[1736408814733,16.93441189,190.61,190.47,3.287]
[1736408815127,2.6246,190.58,190.48,2.6257]
[1736408815327,2.6246,190.58,190.47,3.287]
[1736408815828,15.79,190.82,190.56,16.93441189]
[1736408816130,16.93441189,190.72,190.57,1.839]
[1736408816331,2.6232,190.67,190.57,1.839]
[1736408816630,16.93441189,190.69,190.57,1.839]
[1736408816823,2.6234,190.66,190.57,1.839]
[1736408817025,2.7683,190.68,190.57,1.839]
[1736408817730,2.6235,190.65,190.57,1.839]
[1736408819132,16.93441189,190.72,190.57,1.839]
[1736408819426,16.93441189,190.72,190.59,2.6242]
[1736408819732,16.93441189,190.72,190.58,1.5243]
[1736408819929,3.129,190.71,190.58,1.5243]
[1736408820532,3.129,190.71,190.57,1.839]
[1736408820533,16.93441189,190.69,190.57,1.839]
[1736408820730,2.6237,190.64,190.57,1.839]
[1736408823231,16.93441189,190.69,190.57,1.839]
[1736408823429,3.129,190.71,190.51,3.2079]
[1736408823430,16.93441189,190.63,190.51,3.2079]
[1736408823729,16.93441189,190.6,190.49,1.7053]
[1736408823930,2.6249,190.55,190.49,1.7053]
[1736408824123,16.93441189,190.6,190.49,1.7053]
[1736408824331,2.8262,190.61,190.49,1.7053]
[1736408824530,2.6244,190.59,190.49,1.7053]
[1736408825430,2.8262,190.61,190.49,1.7053]
[1736408825634,0.92262169,190.6,190.49,4.3309]
[1736408825828,17.85703358,190.6,190.49,1.7053]
[1736408826030,2.6253,190.52,190.48,29.03822765]
[1736408826535,16.93441189,190.57,190.48,29.03822765]
[1736408826733,0.92248431,190.56,190.48,29.03822765]
[1736408826934,16.93441189,190.54,190.48,29.03822765]
[1736408827130,0.92248431,190.53,190.44,7.24279178]
[1736408827327,2.6256,190.5,190.44,7.24279178]
[1736408828025,16.93441189,190.54,190.44,7.24279178]
[1736408828228,16.93441189,190.54,190.43,1.5517]
[1736408828229,2.6257,190.49,190.43,1.5517]
[1736408828434,2.6257,190.49,190.39,8.92149178]
[1736408828435,16.93441189,190.51,190.39,7.24279178]
[1736408828632,2.6263,190.45,190.39,7.24279178]
[1736408828832,2.6263,190.45,190.37,29.03822765]
[1736408829033,1.7691,190.5,190.37,29.03822765]
[1736408829236,0.92180558,190.49,190.37,29.03822765]
[1736408830029,0.92180558,190.49,190.35,9.09209178]
[1736408830234,2.6261,190.46,190.36,2.6274]
[1736408830538,1.7691,190.5,190.36,2.6274]
[1736408830735,0.92167918,190.49,190.35,1.8493]
[1736408830927,2.6262,190.45,190.35,1.8493]
[1736408831436,2.6262,190.45,190.35,4.4768]
[1736408831833,2.6262,190.45,190.35,1.8493]
[1736408832036,1.7691,190.5,190.35,1.8493]
[1736408832241,2.6264,190.44,190.35,1.8493]
[1736408833041,16.93441189,190.45,190.35,1.8493]
[1736408833339,16.93441189,190.45,190.32,8.92149178]
[1736408833736,16.93441189,190.45,190.32,1.6787]
[1736408833939,16.93441189,190.45,190.31,8.98809178]
[1736408834240,16.93441189,190.42,190.31,8.98809178]
[1736408834539,16.93441189,190.42,190.28,29.03822765]
[1736408834740,3.0709,190.41,190.28,29.03822765]
[1736408835337,3.0709,190.41,190.27,1.7026]
[1736408836238,3.0709,190.41,190.28,16.93441189]
[1736408837336,2.6272,190.38,190.28,19.56301189]
[1736408837636,3.0709,190.41,190.28,19.56301189]
[1736408837836,3.0709,190.41,190.28,2.6286]
[1736408839241,2.6274,190.37,190.28,2.6286]
[1736408839439,3.0709,190.41,190.27,1.7026]
[1736408839440,3.0709,190.41,190.29,2.6284]
[1736408839641,2.8229,190.41,190.29,2.6284]
[1736408841244,2.6273,190.38,190.29,2.6284]
[1736408841649,16.93441189,190.39,190.27,1.7026]
[1736408841839,16.93441189,190.39,190.25,16.93441189]
[1736408842146,16.93441189,190.39,190.24,3.2521]
[1736408842343,2.6279,190.34,190.24,5.8812]
[1736408842540,16.93441189,190.36,190.24,3.2521]
[1736408843444,0.92029563,190.35,190.24,3.2521]
[1736408843745,2.8229,190.41,190.24,3.2521]
[1736408843948,0.92041879,190.4,190.24,3.2521]
[1736408844243,0.92041879,190.4,190.27,2.6286]
[1736408844244,2.6275,190.37,190.27,2.6286]
[1736408844445,2.8229,190.41,190.27,2.6286]
[1736408844645,16.93441189,190.39,190.24,3.2521]
[1736408844946,16.93441189,190.39,190.24,5.8812]
[1736408844947,2.6279,190.33,190.24,5.8812]
[1736408845348,2.6276,190.36,190.27,2.6287]
[1736408846148,2.6273,190.38,190.28,2.6285]
[1736408846447,2.8229,190.41,190.24,3.2521]
[1736408846646,0.92046626,190.4,190.24,3.2521]
[1736408847249,0.92065948,190.39,190.24,3.2521]
[1736408847551,0.92065948,190.38,190.24,3.2521]
[1736408847747,2.6275,190.36,190.28,2.6286]
[1736408847944,2.8229,190.41,190.24,3.2521]
[1736408848147,0.92051086,190.4,190.28,16.93441189]
[1736408848347,16.93441189,190.48,190.31,16.93441189]
[1736408848651,0.92061959,190.46,190.32,1.7244]
[1736408848852,2.6268,190.42,190.32,4.3524]
[1736408849150,16.93441189,190.48,190.32,1.7244]
[1736408849350,16.93441189,190.43,190.28,16.93441189]
[1736408849552,16.93441189,190.4,190.25,18.65881189]
[1736408849848,2.6279,190.33,190.25,1.7244]
[1736408850046,2.6279,190.33,190.25,4.3533]
[1736408850245,16.93441189,190.4,190.25,4.3533]
[1736408850749,2.6277,190.35,190.25,4.3533]
[1736408850952,2.6277,190.35,190.26,2.6288]
[1736408851352,16.93441189,190.4,190.26,2.6288]
[1736408851546,2.6278,190.34,190.26,2.6288]
[1736408851746,16.93441189,190.4,190.26,2.6288]
[1736408853047,2.6277,190.35,190.26,2.6288]
[1736408856356,16.93441189,190.4,190.26,2.6288]
[1736408856552,2.6278,190.34,190.26,2.6288]
[1736408859061,2.6278,190.34,190.27,2.6287]
[1736408859454,13.24179387,190.36,190.25,1.7244]
[1736408859956,10.61419387,190.36,190.25,1.7244]
[1736408860156,10.61419387,190.39,190.27,10.61419387]
[1736408860355,10.61419387,190.42,190.3,10.61419387]
[1736408860556,0.92023885,190.41,190.32,2.6279]
[1736408861056,13.24089387,190.42,190.3,10.61419387]
[1736408861264,2.6267,190.42,190.31,16.96806009]
[1736408861760,2.6267,190.42,190.32,3.066]
[1736408861959,2.6265,190.44,190.35,2.6276]
[1736408862561,2.6266,190.43,190.35,2.6276]
[1736408863059,16.96806009,190.43,190.35,7.24279178]
[1736408863264,16.96806009,190.4,190.35,7.24279178]
[1736408863758,2.6273,190.38,190.35,7.24279178]
[1736408864253,2.6273,190.38,190.32,3.066]
[1736408864968,2.6274,190.37,190.31,7.24279178]
[1736408865259,16.96806009,190.37,190.31,29.03822765]
[1736408865460,2.6276,190.36,190.31,29.03822765]
[1736408866462,99.4915,190.49,190.29,57.95677983]
[1736408866463,16.96806009,190.4,190.29,21.79543587]
[1736408866660,2.6282,190.31,190.29,21.79543587]
[1736408866863,16.96806009,190.32,190.29,21.79543587]
[1736408867268,16.96806009,190.35,190.25,21.79543587]
[1736408867767,2.6279,190.33,190.25,21.79543587]
[1736408867969,16.96806009,190.35,190.26,4.84286933]
[1736408868467,2.6283,190.31,190.26,4.84286933]
[1736408868860,2.6283,190.31,190.24,57.95677983]
[1736408868861,2.6283,190.31,190.24,21.79543587]
[1736408869569,2.6283,190.31,190.25,4.84359902]
[1736408870572,2.5092,190.46,190.26,18.44526009]
[1736408870863,16.96806009,190.44,190.26,18.44526009]
[1736408871069,2.6271,190.4,190.31,2.628]
[1736408871270,2.6271,190.4,190.32,1.4886]
[1736408871563,16.96806009,190.44,190.32,1.4886]
[1736408871763,2.6268,190.41,190.32,4.1166]
[1736408871963,2.5092,190.46,190.32,1.4886]
[1736408872165,0.92094556,190.45,190.33,1.6038]
[1736408872364,16.96806009,190.47,190.33,1.6038]
[1736408872564,0.92102136,190.46,190.33,1.6038]
[1736408872761,2.6264,190.45,190.35,2.6275]
[1736408872967,16.96806009,190.47,190.36,1.4749]
[1736408873269,0.92110422,190.46,190.36,1.4749]
[1736408873467,82.02,190.49,190.36,1.4749]
[1736408873662,0.9207154,190.48,190.36,1.4749]
[1736408874287,82.02,190.49,190.36,1.4749]
[1736408874870,82.02,190.49,190.38,16.96806009]
[1736408875269,4.00184906,190.5,190.38,16.96806009]
[1736408876167,16.96806009,190.56,190.41,16.96806009]
[1736408876372,0.92077693,190.55,190.48,2.6258]
[1736408876570,2.6247,190.57,190.49,1.6136]
[1736408876865,82.04,190.6,190.49,1.6136]
[1736408877074,2.6244,190.58,190.49,4.2393]
[1736408877372,0.92103421,190.57,190.49,4.2393]
[1736408877569,0.92103421,190.57,190.49,1.6136]
[1736408877770,3.54563421,190.57,190.49,1.6136]
[1736408877965,16.96806009,190.59,190.49,1.6136]
[1736408878275,2.6253,190.52,190.42,3.0617]
[1736408878475,2.6253,190.52,190.43,1.4911]
[1736408879067,16.96806009,190.53,190.43,1.4911]
[1736408879266,2.6254,190.52,190.43,1.4911]
[1736408879976,2.6254,190.52,190.43,4.1176]
[1736408880367,2.6254,190.51,190.43,1.4911]
[1736408881665,16.96806009,190.53,190.43,4.1175]
[1736408881666,2.6253,190.52,190.43,4.1175]
[1736408883477,16.96806009,190.53,190.43,1.4911]
[1736408883675,16.96806009,190.5,190.43,1.4911]
[1736408884070,2.6258,190.48,190.43,1.4911]
[1736408884680,16.96806009,190.5,190.42,1.5077]
[1736408884972,99.00806009,190.6,190.36,1.5814]
[1736408884973,16.96806009,190.47,190.36,1.5814]
[1736408885176,2.6262,190.45,190.36,1.5814]
[1736408886677,2.6262,190.45,190.36,4.2089]
[1736408886877,2.6264,190.44,190.36,1.5814]
[1736408887379,16.96806009,190.47,190.36,1.5814]
[1736408887579,16.96806009,190.44,190.36,1.5814]
[1736408888785,2.6265,190.43,190.36,1.5814]
[1736408888986,16.96806009,190.44,190.35,1.544]
[1736408889482,2.6269,190.41,190.35,1.544]
[1736408890004,16.96806009,190.44,190.35,1.544]
[1736408890382,2.6269,190.41,190.35,1.544]
[1736408892683,2.6271,190.39,190.3,3.0866]
[1736408892888,2.6271,190.39,190.3,4.7199]
[1736408895090,16.96806009,190.44,190.3,4.7199]
[1736408895387,2.6273,190.38,190.3,4.7199]
[1736408897293,16.96806009,190.41,190.3,4.7199]
[1736408897496,0.92016264,190.4,190.3,7.3482]
[1736408897693,0.92016264,190.4,190.3,5.7414]
[1736408899096,2.6271,190.39,190.3,5.7414]
[1736408901198,2.6272,190.38,190.3,5.7414]
[1736408902497,2.6272,190.38,190.3,3.1131]
[1736408903391,2.6275,190.36,190.3,3.1131]
[1736408904397,2.6272,190.38,190.3,3.1131]
[1736408906200,2.6272,190.38,190.3,5.7414]
[1736408907099,2.6275,190.36,190.3,3.1131]
[1736408907396,82.02,190.48,190.3,3.1131]
[1736408907397,10.60996073,190.37,190.3,3.1131]
[1736408908001,2.6276,190.35,190.3,3.1131]
[1736408909403,2.6278,190.34,190.25,10.60996073]
[1736408909603,10.60996073,190.37,190.26,2.6287]
[1736408910001,2.6276,190.35,190.26,2.6287]
[1736408910202,2.6276,190.35,190.27,2.6287]
[1736408910401,2.6276,190.35,190.25,10.60996073]
[1736408910702,10.60996073,190.34,190.24,2.629]
[1736408913200,2.628,190.32,190.24,2.629]
[1736408913501,10.60996073,190.34,190.23,3.021]
[1736408913706,2.6284,190.3,190.23,3.021]
[1736408915007,10.60996073,190.31,190.23,3.021]
[1736408915204,0.9196737,190.3,190.23,3.021]
[1736408915602,0.9196737,190.3,190.2,1.5961]
[1736408915907,10.60996073,190.28,190.17,2.9938]
[1736408916204,2.6287,190.27,190.17,5.6239]
[1736408916404,10.60996073,190.28,190.17,5.6239]
[1736408916597,0.91954031,190.27,190.17,2.9938]
[1736408917104,10.60996073,190.19,190.16,63.43133579]
[1736408918304,2.6301,190.17,190.16,63.43133579]
[1736408919120,10.60996073,190.19,190.16,63.43133579]
[1736408919121,13.23986073,190.19,190.16,63.43133579]
[1736408919304,83.0,190.1,190.01,9.7968966]
[1736408919605,10.60996073,190.17,190.03,10.60996073]
[1736408920209,10.60996073,190.17,190.02,4.7975]
[1736408920210,2.6306,190.14,190.02,4.7975]
[1736408920408,10.60996073,190.14,190.02,4.7975]
[1736408920804,2.631,190.11,190.02,4.7975]
[1736408921012,10.60996073,190.08,190.02,3.2167]
[1736408921207,10.60996073,190.08,189.88,57.95677983]
[1736408921208,10.60996073,190.08,189.89,1.5685]
[1736408921404,2.6317,190.06,189.94,10.60996073]
[1736408921707,10.60996073,190.08,189.94,10.60996073]
[1736408922105,15.78,190.19,189.9,10.60996073]
[1736408922106,10.60996073,190.11,189.97,10.60996073]
[1736408922309,10.60996073,190.11,189.98,4.6117]
[1736408922911,2.6316,190.07,189.98,4.6117]
[1736408925206,10.60996073,190.08,189.98,4.6117]
[1736408925711,10.60996073,190.05,189.98,3.0432]
[1736408926107,2.6321,190.03,189.98,3.0432]
[1736408926307,10.60996073,190.05,189.91,2.6336]
[1736408926504,10.60996073,190.05,189.91,13.24356073]
[1736408926710,10.60996073,190.02,189.91,13.24356073]
[1736408926909,2.6324,190.01,189.91,13.24356073]
[1736408927313,2.6325,190.0,189.9,0.27199]
[1736408927509,10.60996073,190.02,189.9,0.27199]
[1736408928013,2.6324,190.01,189.9,2.90579]
[1736408928305,10.60996073,190.08,189.9,0.27199]
[1736408928513,10.60996073,189.99,189.9,0.27199]
[1736408929212,10.60996073,189.99,189.91,2.6336]
[1736408930710,13.24256073,189.99,189.9,2.90579]
[1736408930909,10.60996073,189.99,189.9,0.27199]
[1736408931311,10.60996073,190.05,189.91,10.60996073]
[1736408932316,2.632,190.03,189.95,2.6331]
[1736408932816,10.60996073,190.05,189.95,2.6331]
[1736408933215,10.60996073,190.02,189.95,2.6331]
[1736408934114,10.60996073,190.02,189.92,2.6334]
[1736408934115,2.6324,190.01,189.92,2.6334]
[1736408934314,10.60996073,190.02,189.92,2.6334]
[1736408934518,10.60996073,190.02,189.9,0.27199]
[1736408935018,2.6323,190.01,189.94,2.6333]
[1736408935211,10.60996073,190.02,189.91,10.60996073]
[1736408936718,10.60996073,190.02,189.95,2.6331]
[1736408938023,10.60996073,190.02,189.91,10.60996073]
[1736408938221,10.60996073,190.02,189.96,2.633]
[1736408938620,10.60996073,190.05,189.99,2.6325]
[1736408938814,1.05224391,190.07,189.95,1.5005]
[1736408939214,1.05224391,190.07,189.96,3.1681]
[1736408939419,10.60996073,190.05,189.99,2.6326]
[1736408940917,10.60996073,190.05,189.96,3.1681]
[1736408941314,10.60996073,190.05,189.99,2.6326]
[1736408941719,10.60996073,190.05,189.96,3.1681]
[1736408941920,13.24186073,190.05,189.96,5.801]
[1736408942118,10.60996073,190.05,189.96,3.1681]
[1736408943318,10.60996073,190.05,189.98,2.6326]
[1736408944410,10.60996073,190.05,189.99,2.6326]
[1736408944611,10.60996073,190.05,189.96,3.1681]
[1736408944612,1.05224391,190.07,189.96,3.1681]
[1736408944818,1.05224391,190.07,190.06,2.6316]
[1736408945525,10.60996073,190.14,190.01,10.60996073]
[1736408946615,10.60996073,190.14,190.04,10.60996073]
[1736408946821,10.60996073,190.19,190.07,10.60996073]
[1736408947415,10.60996073,190.19,190.14,2.6305]
[1736408947616,10.60996073,190.19,190.07,10.60996073]
[1736408948021,2.6301,190.18,190.11,2.6308]
[1736408948221,10.60996073,190.19,190.07,10.60996073]
[1736408948422,10.60996073,190.3,190.05,4.5557]
[1736408948423,10.60996073,190.16,190.05,4.5557]
[1736408949419,10.60996073,190.08,190.05,4.5557]
[1736408950022,10.60996073,190.11,190.05,7.1874]
[1736408950621,13.24096073,190.11,190.05,7.1874]
[1736408950828,10.60996073,190.11,190.06,2.6316]
[1736408951025,10.60996073,190.11,190.05,4.5557]
[1736408951218,10.60996073,190.11,189.98,7.21917268]
[1736408951418,10.60996073,190.11,190.03,2.632]
[1736408951628,10.60996073,190.11,189.98,11.91477268]
[1736408951827,10.60996073,190.11,190.05,2.6317]
[1736408952630,10.60996073,190.14,190.0,10.60996073]
[1736408953127,10.60996073,190.14,190.02,2.6321]
[1736408953425,2.6302,190.17,190.03,10.60996073]
[1736408953426,10.60996073,190.17,190.03,10.60996073]
[1736408953728,10.60996073,190.17,190.06,10.60996073]
[1736408953930,10.60996073,190.17,190.07,4.6539]
[1736408954128,10.60996073,190.17,190.13,2.6305]
[1736408954630,10.60996073,190.17,190.07,4.6539]
[1736408954830,10.60996073,190.17,190.12,2.6308]
[1736408955132,10.60996073,190.17,190.07,4.6539]
[1736408955825,10.60996073,190.17,190.11,2.6308]
[1736408956331,13.24006073,190.17,190.11,2.6308]
[1736408956933,10.60996073,190.17,190.12,2.6307]
[1736408958646,10.60996073,190.17,190.13,2.6306]
[1736408960231,2.6298,190.19,190.13,2.6306]
[1736408960427,2.6298,190.19,190.14,2.6305]
[1736408961136,2.6298,190.19,190.07,4.6539]
[1736408961341,2.63,190.18,190.12,2.6307]
[1736408961535,10.60996073,190.2,190.12,2.6307]
[1736408962138,13.23976073,190.2,190.12,2.6307]
[1736408962538,13.23976073,190.2,190.07,4.6539]
[1736408962738,13.23976073,190.2,190.13,2.6306]
[1736408963437,13.23976073,190.2,190.07,4.6539]
[1736408963438,10.60996073,190.2,190.07,4.6539]
[1736408963642,10.60996073,190.2,190.07,15.26386073]
[1736408964342,10.60996073,190.2,190.1,10.60996073]
[1736408964544,10.60996073,190.23,190.1,10.60996073]
[1736408964740,82.16,190.31,190.13,10.60996073]
[1736408964937,10.60996073,190.28,190.16,10.60996073]
[1736408965143,10.60996073,190.28,190.17,4.6901]
[1736408965342,10.60996073,190.28,190.23,2.6292]
[1736408965648,10.60996073,190.28,190.17,4.6901]
[1736408966044,10.60996073,190.4,190.19,10.60996073]
[1736408966045,13.23816073,190.31,190.19,10.60996073]
[1736408966346,10.60996073,190.31,190.23,2.6291]
[1736408966545,10.60996073,190.31,190.19,10.60996073]
[1736408966740,2.6283,190.3,190.19,10.60996073]
[1736408966945,2.6283,190.3,190.24,2.6291]
[1736408967146,10.60996073,190.31,190.19,10.60996073]
[1736408967949,10.60996073,190.31,190.26,2.6287]
[1736408968250,10.60996073,190.31,190.19,10.60996073]
[1736408968552,13.23816073,190.31,190.25,2.629]
[1736408968747,10.60996073,190.31,190.19,10.60996073]
[1736408969057,10.60996073,190.31,190.22,2.6293]
[1736408969352,10.60996073,190.31,190.19,10.60996073]
[1736408969752,10.60996073,190.34,190.22,10.60996073]
[1736408970446,82.1,190.45,190.22,10.60996073]
[1736408970447,10.60996073,190.37,190.25,10.60996073]
[1736408970648,10.60996073,190.37,190.26,4.7399]
[1736408971057,82.1,190.45,190.28,10.60996073]
[1736408971247,10.60996073,190.4,190.28,10.60996073]
[1736408972251,10.60996073,190.43,190.31,10.60996073]
[1736408972948,10.60996073,190.46,190.34,10.60996073]
[1736408973452,10.60996073,190.46,190.39,2.627]
[1736408973958,10.60996073,190.46,190.35,3.1154]
[1736408975154,10.60996073,190.46,190.39,2.627]
[1736408975856,10.60996073,190.46,190.35,3.1154]
[1736408976654,10.60996073,190.46,190.4,2.6268]
[1736408976951,10.60996073,190.46,190.35,3.1154]
[1736408977149,10.60996073,190.49,190.44,2.6263]
[1736408977754,10.60996073,190.49,190.45,2.6262]
[1736408978051,2.6251,190.54,190.4,10.60996073]
[1736408978255,10.60996073,190.52,190.4,10.60996073]
[1736408978451,10.60996073,190.52,190.45,2.6262]
[1736408979255,10.60996073,190.49,190.42,2.6265]
[1736408979752,10.60996073,190.49,190.37,10.60996073]
[1736408979753,10.60996073,190.49,190.43,2.6264]
[1736408979956,10.60996073,190.49,190.37,10.60996073]
[1736408980554,10.60996073,190.52,190.4,10.60996073]
[1736408981756,10.60996073,190.52,190.43,2.6264]
[1736408981955,10.60996073,190.52,190.4,10.60996073]
[1736408982489,10.60996073,190.52,190.35,4.6385]
[1736408982490,10.60996073,190.55,190.43,10.60996073]
[1736408982756,10.60996073,190.55,190.44,2.9877]
[1736408983155,10.60996073,190.52,190.44,2.9877]
[1736408983356,10.60996073,190.49,190.37,10.60996073]
[1736408983659,10.60996073,190.49,190.38,1.5146]
[1736408984258,97.78,190.67,190.4,10.60996073]
[1736408984458,10.60996073,190.52,190.4,10.60996073]
[1736408984756,10.60996073,190.52,190.47,2.6259]
[1736408985059,10.60996073,190.55,190.43,10.60996073]
[1736408985256,10.60996073,190.55,190.44,2.9973]
[1736408985554,10.60996073,190.55,190.51,2.6253]
[1736408985757,10.60996073,190.55,190.44,2.9973]